[Event "Late-Titled-Tuesday-Blitz-April-02-2024"]
[Site "Chess.com"]
[Date "2024.04.02"]
[Round "1"]
[White "jamengrand"]
[Black "slidingknight2775"]
[Result "1-0"]
[WhiteElo "2308"]
[BlackElo "2604"]
[TimeControl "180+1"]
[EndTime "14:06:23 PDT"]
[Termination "jamengrand won by checkmate"]

1. e4 {[%clk 0:02:59.6]} 1... c5 {[%clk 0:02:58.6]} 2. Nf3 {[%clk 0:02:58.9]}
2... d6 {[%clk 0:02:58.9]} 3. d4 {[%clk 0:02:59.1]} 3... cxd4 {[%clk 0:02:59.8]}
4. Nxd4 {[%clk 0:02:59.6]} 4... Nf6 {[%clk 0:03:00.4]} 5. Nc3 {[%clk 0:02:59.9]}
5... a6 {[%clk 0:03:00.9]} 6. Bd3 {[%clk 0:03:00.3]} 6... g6 {[%clk 0:02:58.2]}
7. f3 {[%clk 0:02:59.2]} 7... Bg7 {[%clk 0:02:58.2]} 8. Be3 {[%clk 0:02:59.4]}
8... Nc6 {[%clk 0:02:57.8]} 9. Qd2 {[%clk 0:02:59.6]} 9... Bd7 {[%clk
0:02:57.5]} 10. O-O-O {[%clk 0:02:58.8]} 10... Rc8 {[%clk 0:02:52]} 11. Kb1
{[%clk 0:02:55.8]} 11... b5 {[%clk 0:02:51.4]} 12. Nxc6 {[%clk 0:02:50.1]} 12...
Bxc6 {[%clk 0:02:52.3]} 13. Bh6 {[%clk 0:02:50.3]} 13... O-O {[%clk 0:02:45.3]}
14. Bxg7 {[%clk 0:02:48.1]} 14... Kxg7 {[%clk 0:02:46.2]} 15. h4 {[%clk
0:02:47.3]} 15... b4 {[%clk 0:02:43.5]} 16. Ne2 {[%clk 0:02:46.8]} 16... h5
{[%clk 0:02:39.2]} 17. g4 {[%clk 0:02:42.9]} 17... hxg4 {[%clk 0:02:30.3]} 18.
h5 {[%clk 0:02:43.2]} 18... Rh8 {[%clk 0:02:30.9]} 19. hxg6 {[%clk 0:02:41.9]}
19... fxg6 {[%clk 0:02:21.9]} 20. Nf4 {[%clk 0:02:36.7]} 20... Bd7 {[%clk
0:02:11.8]} 21. Nxg6 {[%clk 0:02:34]} 21... Kxg6 {[%clk 0:02:02.1]} 22. e5+
{[%clk 0:02:34]} 22... Kf7 {[%clk 0:01:58.7]} 23. exf6 {[%clk 0:02:29.1]} 23...
exf6 {[%clk 0:01:56.4]} 24. Be4 {[%clk 0:01:43.8]} 24... Be6 {[%clk 0:01:46.1]}
25. Rxh8 {[%clk 0:01:38.9]} 25... Qxh8 {[%clk 0:01:47]} 26. fxg4 {[%clk
0:01:28.6]} 26... Qd8 {[%clk 0:01:20]} 27. g5 {[%clk 0:01:24.3]} 27... Qa5
{[%clk 0:01:07.8]} 28. g6+ {[%clk 0:01:21.5]} 28... Kg7 {[%clk 0:01:06.8]} 29.
b3 {[%clk 0:01:16.8]} 29... Qe5 {[%clk 0:01:04.1]} 30. Rh1 {[%clk 0:01:11.3]}
30... Qg5 {[%clk 0:00:07.1]} 31. Qxd6 {[%clk 0:00:57.9]} 31... Bf5 {[%clk
0:00:02.4]} 32. Qe7+ {[%clk 0:00:55.4]} 32... Kxg6 {[%clk 0:00:03]} 33. Qh7#
{[%clk 0:00:55.2]} 1-0

[Event "Late-Titled-Tuesday-Blitz-April-02-2024"]
[Site "Chess.com"]
[Date "2024.04.02"]
[Round "1"]
[White "Savagelittlemole"]
[Black "Angry_Twin"]
[Result "0-1"]
[WhiteElo "2503"]
[BlackElo "2927"]
[TimeControl "180+1"]
[EndTime "14:06:27 PDT"]
[Termination "Angry_Twin won on time"]

1. e4 {[%clk 0:03:00.9]} 1... c5 {[%clk 0:02:59.9]} 2. Ne2 {[%clk 0:03:01.1]}
2... Nf6 {[%clk 0:02:58.7]} 3. Nbc3 {[%clk 0:02:59.6]} 3... d6 {[%clk
0:02:56.1]} 4. g3 {[%clk 0:02:59]} 4... e5 {[%clk 0:02:55.8]} 5. Bg2 {[%clk
0:02:59.5]} 5... Be7 {[%clk 0:02:55.6]} 6. O-O {[%clk 0:03:00]} 6... O-O {[%clk
0:02:56.2]} 7. d3 {[%clk 0:03:00.3]} 7... Nc6 {[%clk 0:02:52]} 8. f4 {[%clk
0:03:00.4]} 8... Rb8 {[%clk 0:02:51.7]} 9. a4 {[%clk 0:02:59.3]} 9... a6 {[%clk
0:02:51.2]} 10. Nd5 {[%clk 0:02:53.6]} 10... Be6 {[%clk 0:02:44.9]} 11. Nec3
{[%clk 0:02:52.8]} 11... Nd4 {[%clk 0:02:43.8]} 12. a5 {[%clk 0:02:42.9]} 12...
Nxd5 {[%clk 0:02:38.3]} 13. Nxd5 {[%clk 0:02:39.6]} 13... Bxd5 {[%clk
0:02:34.7]} 14. exd5 {[%clk 0:02:40.5]} 14... exf4 {[%clk 0:02:35.1]} 15. Bxf4
{[%clk 0:02:36.6]} 15... Bg5 {[%clk 0:02:35.1]} 16. c3 {[%clk 0:02:28.7]} 16...
Nf5 {[%clk 0:02:22.8]} 17. Qg4 {[%clk 0:02:18.9]} 17... Bxf4 {[%clk 0:02:19.1]}
18. Qxf5 {[%clk 0:02:10.9]} 18... Be5 {[%clk 0:02:16.9]} 19. Qg4 {[%clk
0:01:46.2]} 19... g6 {[%clk 0:02:05.4]} 20. h4 {[%clk 0:01:41]} 20... h5 {[%clk
0:01:55]} 21. Qf3 {[%clk 0:01:35.2]} 21... b6 {[%clk 0:01:53.4]} 22. axb6 {[%clk
0:01:29.4]} 22... Rxb6 {[%clk 0:01:51.4]} 23. Rf2 {[%clk 0:01:29.8]} 23... Qb8
{[%clk 0:01:50.9]} 24. Kh2 {[%clk 0:01:21.3]} 24... Rxb2 {[%clk 0:01:46.2]} 25.
Rxb2 {[%clk 0:01:21.9]} 25... Qxb2 {[%clk 0:01:45.9]} 26. Rxa6 {[%clk
0:01:22.6]} 26... Qxc3 {[%clk 0:01:39.4]} 27. Ra7 {[%clk 0:01:10.2]} 27... Qd4
{[%clk 0:01:38.5]} 28. Qe4 {[%clk 0:00:51.7]} 28... Qf2 {[%clk 0:01:33]} 29. Qf3
{[%clk 0:00:47.6]} 29... Qd4 {[%clk 0:01:26.9]} 30. Qe4 {[%clk 0:00:47]} 30...
Rb8 {[%clk 0:01:18.7]} 31. Qxd4 {[%clk 0:00:37.2]} 31... Bxd4 {[%clk 0:01:16.6]}
32. Be4 {[%clk 0:00:08.2]} 32... Rb2+ {[%clk 0:01:15.4]} 33. Kh3 {[%clk
0:00:06.6]} 33... Re2 {[%clk 0:01:12.9]} 34. Rd7 {[%clk 0:00:03.1]} 34... Be5
{[%clk 0:01:12.9]} 35. Rd8+ {[%clk 0:00:02.1]} 35... Kg7 {[%clk 0:01:12.8]} 36.
Rd7 {[%clk 0:00:02.9]} 36... Re3 {[%clk 0:01:12.7]} 37. Kh2 {[%clk 0:00:01.2]}
37... Rxg3 {[%clk 0:01:11.8]} 38. Kh1 {[%clk 0:00:01.6]} 38... Rg4 {[%clk
0:01:12.1]} 0-1

[Event "Late-Titled-Tuesday-Blitz-April-02-2024"]
[Site "Chess.com"]
[Date "2024.04.02"]
[Round "1"]
[White "rhungaski"]
[Black "TheMagician"]
[Result "0-1"]
[WhiteElo "2599"]
[BlackElo "2302"]
[TimeControl "180+1"]
[EndTime "14:06:27 PDT"]
[Termination "TheMagician won by resignation"]

1. e4 {[%clk 0:02:43.1]} 1... e5 {[%clk 0:02:58.7]} 2. Nf3 {[%clk 0:02:42.7]}
2... Nc6 {[%clk 0:02:57.5]} 3. d4 {[%clk 0:02:42.5]} 3... exd4 {[%clk
0:02:56.9]} 4. Nxd4 {[%clk 0:02:43.4]} 4... Bc5 {[%clk 0:02:56]} 5. Be3 {[%clk
0:02:41.7]} 5... Bb6 {[%clk 0:02:55.7]} 6. Nf5 {[%clk 0:02:38.4]} 6... Bxe3
{[%clk 0:02:50.6]} 7. Nxe3 {[%clk 0:02:39.3]} 7... Nf6 {[%clk 0:02:49.7]} 8. f3
{[%clk 0:02:34.1]} 8... d6 {[%clk 0:02:43.4]} 9. c4 {[%clk 0:02:31]} 9... O-O
{[%clk 0:02:38.1]} 10. Nc3 {[%clk 0:02:30.9]} 10... Nd7 {[%clk 0:02:34.8]} 11.
Bd3 {[%clk 0:02:17.2]} 11... Nde5 {[%clk 0:02:32.9]} 12. Bc2 {[%clk 0:02:12.9]}
12... Qh4+ {[%clk 0:02:25.4]} 13. Ke2 {[%clk 0:02:03.8]} 13... Qd8 {[%clk
0:02:19.8]} 14. b3 {[%clk 0:02:00.1]} 14... Nd7 {[%clk 0:02:08.9]} 15. Qd2
{[%clk 0:01:49.7]} 15... Nc5 {[%clk 0:02:07.2]} 16. Rhf1 {[%clk 0:01:39.8]}
16... Qh4 {[%clk 0:02:05.2]} 17. h3 {[%clk 0:01:28.6]} 17... Ne6 {[%clk
0:02:02.6]} 18. Rae1 {[%clk 0:01:14.6]} 18... Ned4+ {[%clk 0:01:51.1]} 19. Kd1
{[%clk 0:01:14.4]} 19... Nxc2 {[%clk 0:01:50.8]} 20. Kxc2 {[%clk 0:01:12.9]}
20... a5 {[%clk 0:01:36.1]} 21. a3 {[%clk 0:01:06.7]} 21... Bd7 {[%clk
0:01:17.3]} 22. Ned5 {[%clk 0:01:02.7]} 22... Qd8 {[%clk 0:01:16.1]} 23. Nb5
{[%clk 0:00:47.2]} 23... a4 {[%clk 0:01:03.3]} 24. b4 {[%clk 0:00:44]} 24... Ne5
{[%clk 0:01:03.3]} 25. Ndxc7 {[%clk 0:00:14.4]} 25... Rc8 {[%clk 0:00:55.4]} 26.
Qxd6 {[%clk 0:00:14.6]} 26... Nxc4 {[%clk 0:00:51.5]} 27. Qd5 {[%clk 0:00:11.2]}
27... Bxb5 {[%clk 0:00:50.5]} 28. Qxd8 {[%clk 0:00:08.6]} 28... Rfxd8 {[%clk
0:00:48.1]} 29. Nxb5 {[%clk 0:00:08.6]} 29... Nxa3+ {[%clk 0:00:48.2]} 0-1

[Event "Late-Titled-Tuesday-Blitz-April-02-2024"]
[Site "Chess.com"]
[Date "2024.04.02"]
[Round "1"]
[White "lcmil"]
[Black "ArmanGhevondyanchess"]
[Result "0-1"]
[WhiteElo "2258"]
[BlackElo "2599"]
[TimeControl "180+1"]
[EndTime "14:06:27 PDT"]
[Termination "ArmanGhevondyanchess won by resignation"]

1. e4 {[%clk 0:02:55.8]} 1... c5 {[%clk 0:02:59]} 2. Nf3 {[%clk 0:02:55.4]} 2...
Nc6 {[%clk 0:02:58.7]} 3. d4 {[%clk 0:02:55.8]} 3... cxd4 {[%clk 0:02:59.6]} 4.
Nxd4 {[%clk 0:02:56.5]} 4... g6 {[%clk 0:02:59.9]} 5. Nc3 {[%clk 0:02:57.2]}
5... Bg7 {[%clk 0:03:00]} 6. Be3 {[%clk 0:02:57.8]} 6... Nf6 {[%clk 0:02:59.8]}
7. Bc4 {[%clk 0:02:55.2]} 7... O-O {[%clk 0:02:58.7]} 8. Bb3 {[%clk 0:02:55.2]}
8... a5 {[%clk 0:02:58.5]} 9. a4 {[%clk 0:02:41.7]} 9... Nb4 {[%clk 0:02:57.4]}
10. e5 {[%clk 0:02:34.3]} 10... Ne8 {[%clk 0:02:55.4]} 11. f4 {[%clk 0:02:09.3]}
11... d6 {[%clk 0:02:53.3]} 12. e6 {[%clk 0:02:06.8]} 12... f5 {[%clk
0:02:48.5]} 13. O-O {[%clk 0:02:02.7]} 13... Nf6 {[%clk 0:02:39.9]} 14. Nf3
{[%clk 0:01:48.9]} 14... d5 {[%clk 0:02:34.4]} 15. Bd4 {[%clk 0:01:42.8]} 15...
Bxe6 {[%clk 0:02:33]} 16. Re1 {[%clk 0:01:39]} 16... Bf7 {[%clk 0:02:31.2]} 17.
Ng5 {[%clk 0:01:34.6]} 17... Qd7 {[%clk 0:02:26.5]} 18. Qe2 {[%clk 0:01:22.9]}
18... Ne4 {[%clk 0:02:12]} 19. Bxg7 {[%clk 0:01:18.8]} 19... Kxg7 {[%clk
0:02:11.5]} 20. Ncxe4 {[%clk 0:01:17.1]} 20... fxe4 {[%clk 0:02:11.3]} 21. Qd2
{[%clk 0:01:09.8]} 21... Qc6 {[%clk 0:02:04.9]} 22. Qd4+ {[%clk 0:01:00.9]}
22... Qf6 {[%clk 0:02:04.6]} 23. Rad1 {[%clk 0:00:46.1]} 23... Qxd4+ {[%clk
0:02:02.5]} 24. Rxd4 {[%clk 0:00:45.8]} 24... e6 {[%clk 0:02:01.7]} 25. c4
{[%clk 0:00:41.6]} 25... Rad8 {[%clk 0:01:52.5]} 26. cxd5 {[%clk 0:00:41.4]}
26... exd5 {[%clk 0:01:52.2]} 27. Red1 {[%clk 0:00:38]} 27... Nd3 {[%clk
0:01:32.4]} 28. Nxf7 {[%clk 0:00:33.3]} 28... Rxf7 {[%clk 0:01:29.6]} 29. Rxd5
{[%clk 0:00:32.3]} 29... Rxd5 {[%clk 0:01:24.7]} 30. Bxd5 {[%clk 0:00:33.2]}
30... Rxf4 {[%clk 0:01:23.6]} 31. Bxe4 {[%clk 0:00:28.9]} 31... Nxb2 {[%clk
0:01:23.3]} 32. Rd7+ {[%clk 0:00:24.6]} 32... Rf7 {[%clk 0:01:23.5]} 33. Rxf7+
{[%clk 0:00:22.8]} 33... Kxf7 {[%clk 0:01:23.6]} 34. Bxb7 {[%clk 0:00:23.3]}
34... Nxa4 {[%clk 0:01:23.8]} 35. Kf2 {[%clk 0:00:19.2]} 35... Nc5 {[%clk
0:01:23.8]} 36. Bd5+ {[%clk 0:00:19.4]} 36... Kf6 {[%clk 0:01:24.4]} 37. Ke3
{[%clk 0:00:18.3]} 37... Ke5 {[%clk 0:01:25]} 38. Bg8 {[%clk 0:00:18.1]} 38...
h6 {[%clk 0:01:25.4]} 39. Bf7 {[%clk 0:00:18.8]} 39... g5 {[%clk 0:01:25.7]} 40.
g3 {[%clk 0:00:18.6]} 40... Ne4 {[%clk 0:01:23.8]} 41. h4 {[%clk 0:00:16.4]}
41... Nxg3 {[%clk 0:01:20.8]} 42. hxg5 {[%clk 0:00:16.8]} 42... hxg5 {[%clk
0:01:21.7]} 43. Kf3 {[%clk 0:00:17.4]} 43... Ne4 {[%clk 0:01:21.1]} 44. Kg4
{[%clk 0:00:16.4]} 44... a4 {[%clk 0:01:19.4]} 45. Ba2 {[%clk 0:00:16.7]} 45...
a3 {[%clk 0:01:19.8]} 46. Bg8 {[%clk 0:00:16.5]} 46... Kf6 {[%clk 0:01:19.8]}
47. Bd5 {[%clk 0:00:16.2]} 47... Nc3 {[%clk 0:01:20.5]} 48. Bb3 {[%clk
0:00:16.2]} 48... a2 {[%clk 0:01:18.9]} 49. Bxa2 {[%clk 0:00:16.8]} 49... Nxa2
{[%clk 0:01:19.8]} 0-1

[Event "Late-Titled-Tuesday-Blitz-April-02-2024"]
[Site "Chess.com"]
[Date "2024.04.02"]
[Round "1"]
[White "wild3000"]
[Black "SRob2003"]
[Result "0-1"]
[WhiteElo "2378"]
[BlackElo "2671"]
[TimeControl "180+1"]
[EndTime "14:06:28 PDT"]
[Termination "SRob2003 won on time"]

1. d4 {[%clk 0:03:00]} 1... Nf6 {[%clk 0:02:58.9]} 2. Nf3 {[%clk 0:02:59.8]}
2... d5 {[%clk 0:02:58.5]} 3. e3 {[%clk 0:02:59.7]} 3... c5 {[%clk 0:02:58.5]}
4. Be2 {[%clk 0:02:59]} 4... Nc6 {[%clk 0:02:56.5]} 5. O-O {[%clk 0:02:59]} 5...
Bg4 {[%clk 0:02:54.3]} 6. h3 {[%clk 0:02:50.5]} 6... Bh5 {[%clk 0:02:54.2]} 7.
Ne5 {[%clk 0:02:47.8]} 7... Bxe2 {[%clk 0:02:53.5]} 8. Qxe2 {[%clk 0:02:47.4]}
8... cxd4 {[%clk 0:02:52.9]} 9. Nxc6 {[%clk 0:02:46.2]} 9... bxc6 {[%clk
0:02:52.4]} 10. exd4 {[%clk 0:02:45.3]} 10... e6 {[%clk 0:02:53.1]} 11. c4
{[%clk 0:02:41.6]} 11... Be7 {[%clk 0:02:52.6]} 12. Nc3 {[%clk 0:02:41.5]} 12...
O-O {[%clk 0:02:52.7]} 13. Bf4 {[%clk 0:02:31.8]} 13... Qa5 {[%clk 0:02:44.3]}
14. c5 {[%clk 0:02:26.2]} 14... Nd7 {[%clk 0:02:43]} 15. a3 {[%clk 0:02:22.4]}
15... Bf6 {[%clk 0:02:40.6]} 16. b4 {[%clk 0:02:18.3]} 16... Qd8 {[%clk
0:02:41]} 17. Rad1 {[%clk 0:02:14.9]} 17... Re8 {[%clk 0:02:39.9]} 18. Qa6
{[%clk 0:01:45.9]} 18... Qc8 {[%clk 0:02:18.7]} 19. Qxc8 {[%clk 0:01:35.1]}
19... Raxc8 {[%clk 0:02:19.6]} 20. Bd6 {[%clk 0:01:26.4]} 20... e5 {[%clk
0:02:14.9]} 21. dxe5 {[%clk 0:01:25.1]} 21... Nxe5 {[%clk 0:02:15.8]} 22. Bxe5
{[%clk 0:01:04.6]} 22... Bxe5 {[%clk 0:02:16.7]} 23. Rc1 {[%clk 0:00:57.4]}
23... a6 {[%clk 0:02:09.5]} 24. Rc2 {[%clk 0:00:56.7]} 24... Bf6 {[%clk
0:02:01.2]} 25. Rd1 {[%clk 0:00:52.2]} 25... Re7 {[%clk 0:01:50.5]} 26. g3
{[%clk 0:00:50.2]} 26... g6 {[%clk 0:01:49.1]} 27. Kf1 {[%clk 0:00:48.2]} 27...
Rce8 {[%clk 0:01:48.7]} 28. h4 {[%clk 0:00:35.7]} 28... h5 {[%clk 0:01:48.6]}
29. Ne2 {[%clk 0:00:34.7]} 29... Re4 {[%clk 0:01:47.6]} 30. Nf4 {[%clk
0:00:33.4]} 30... Kg7 {[%clk 0:01:44.4]} 31. Re2 {[%clk 0:00:25.2]} 31... Rxe2
{[%clk 0:01:43.7]} 32. Nxe2 {[%clk 0:00:25.1]} 32... Re4 {[%clk 0:01:44.2]} 33.
Rd3 {[%clk 0:00:24.4]} 33... Rc4 {[%clk 0:01:44.1]} 34. Nf4 {[%clk 0:00:21.3]}
34... Rc2 {[%clk 0:01:37.5]} 35. Ne2 {[%clk 0:00:18.4]} 35... Ra2 {[%clk
0:01:37.3]} 36. Nf4 {[%clk 0:00:15.4]} 36... Bb2 {[%clk 0:01:35.8]} 37. Ne2
{[%clk 0:00:11.6]} 37... Bxa3 {[%clk 0:01:34.6]} 38. Nd4 {[%clk 0:00:11.1]}
38... Bxb4 {[%clk 0:01:33.3]} 39. Nxc6 {[%clk 0:00:09.7]} 39... Bxc5 {[%clk
0:01:33.7]} 40. Rxd5 {[%clk 0:00:09.5]} 40... Bxf2 {[%clk 0:01:33.7]} 41. Rd7
{[%clk 0:00:08.6]} 41... Bxg3 {[%clk 0:01:32.8]} 42. Ra7 {[%clk 0:00:06.8]}
42... Bxh4 {[%clk 0:01:31.9]} 43. Ne5 {[%clk 0:00:06.4]} 43... Rf2+ {[%clk
0:01:31.6]} 44. Kg1 {[%clk 0:00:06.5]} 44... Rf5 {[%clk 0:01:31.4]} 45. Nd7
{[%clk 0:00:04.9]} 45... Bf2+ {[%clk 0:01:31.8]} 46. Kg2 {[%clk 0:00:04.9]}
46... Bxa7 {[%clk 0:01:32.7]} 0-1

[Event "Late-Titled-Tuesday-Blitz-April-02-2024"]
[Site "Chess.com"]
[Date "2024.04.02"]
[Round "1"]
[White "RantomOpening"]
[Black "PonyQueen07"]
[Result "1-0"]
[WhiteElo "2573"]
[BlackElo "2162"]
[TimeControl "180+1"]
[EndTime "14:06:31 PDT"]
[Termination "RantomOpening won on time"]

1. c4 {[%clk 0:02:57.7]} 1... e5 {[%clk 0:02:59]} 2. Nc3 {[%clk 0:02:32.9]} 2...
Nf6 {[%clk 0:02:58.8]} 3. Nf3 {[%clk 0:02:32.8]} 3... Nc6 {[%clk 0:02:58.3]} 4.
d4 {[%clk 0:02:29.2]} 4... exd4 {[%clk 0:02:57.9]} 5. Nxd4 {[%clk 0:02:30.1]}
5... Bb4 {[%clk 0:02:47.2]} 6. g3 {[%clk 0:02:30.1]} 6... O-O {[%clk 0:02:46.1]}
7. Bg2 {[%clk 0:02:30.4]} 7... Nxd4 {[%clk 0:02:44.9]} 8. Qxd4 {[%clk
0:02:30.5]} 8... h6 {[%clk 0:02:36.2]} 9. O-O {[%clk 0:02:30.4]} 9... d6 {[%clk
0:02:34]} 10. b3 {[%clk 0:02:30.4]} 10... Bf5 {[%clk 0:02:28]} 11. Bb2 {[%clk
0:02:30]} 11... Bc5 {[%clk 0:02:23.6]} 12. Qd2 {[%clk 0:02:28.6]} 12... Rb8
{[%clk 0:02:14.1]} 13. Na4 {[%clk 0:02:28.6]} 13... Bb6 {[%clk 0:01:42.5]} 14.
Nxb6 {[%clk 0:02:04.4]} 14... axb6 {[%clk 0:01:41.4]} 15. f3 {[%clk 0:02:04.7]}
15... Re8 {[%clk 0:01:38.9]} 16. e4 {[%clk 0:02:02.2]} 16... Bg6 {[%clk
0:01:37.3]} 17. Rad1 {[%clk 0:02:00.7]} 17... Qe7 {[%clk 0:01:33.3]} 18. Rfe1
{[%clk 0:01:56.9]} 18... Rbd8 {[%clk 0:01:11.8]} 19. Qc3 {[%clk 0:01:50.2]}
19... Qf8 {[%clk 0:00:59.8]} 20. a4 {[%clk 0:01:45.9]} 20... Nd7 {[%clk
0:00:56.5]} 21. f4 {[%clk 0:01:44.4]} 21... Bh5 {[%clk 0:00:51.8]} 22. Rd2
{[%clk 0:01:43.4]} 22... Re7 {[%clk 0:00:36.5]} 23. h3 {[%clk 0:01:42.8]} 23...
f6 {[%clk 0:00:26.9]} 24. g4 {[%clk 0:01:42.6]} 24... Bf7 {[%clk 0:00:27]} 25.
Re3 {[%clk 0:01:41.2]} 25... Rde8 {[%clk 0:00:26.1]} 26. Rde2 {[%clk 0:01:41.6]}
26... Nc5 {[%clk 0:00:24.5]} 27. Ba3 {[%clk 0:01:40.6]} 27... Bg6 {[%clk
0:00:21.7]} 28. f5 {[%clk 0:01:40.3]} 28... Bf7 {[%clk 0:00:21.7]} 29. h4 {[%clk
0:01:40.3]} 29... Re5 {[%clk 0:00:12.2]} 30. Bb2 {[%clk 0:01:40.1]} 30... R5e7
{[%clk 0:00:11]} 31. g5 {[%clk 0:01:39.1]} 31... Bh5 {[%clk 0:00:07.2]} 32. gxf6
{[%clk 0:01:37.8]} 32... gxf6 {[%clk 0:00:06.6]} 33. Rg3+ {[%clk 0:01:37.8]}
33... Kh7 {[%clk 0:00:04.8]} 34. Ree3 {[%clk 0:01:37.4]} 34... Rf7 {[%clk
0:00:03.4]} 35. e5 {[%clk 0:01:32]} 35... dxe5 {[%clk 0:00:02.8]} 36. Ba3 {[%clk
0:01:27.4]} 36... Rg7 {[%clk 0:00:03]} 37. Kh2 {[%clk 0:01:26.6]} 37... Rxg3
{[%clk 0:00:03]} 38. Rxg3 {[%clk 0:01:27]} 38... Qf7 {[%clk 0:00:02.9]} 39. Bd5
{[%clk 0:01:26.5]} 39... Qe7 {[%clk 0:00:02.6]} 40. b4 {[%clk 0:01:26.7]} 40...
Nxa4 {[%clk 0:00:02.2]} 41. Qe1 {[%clk 0:01:26.5]} 41... c6 {[%clk 0:00:02.3]}
42. Be6 {[%clk 0:01:25.7]} 42... Rd8 {[%clk 0:00:02.4]} 43. Qg1 {[%clk
0:01:25.1]} 43... Rd1 {[%clk 0:00:01.3]} 44. Kh3 {[%clk 0:01:26]} 1-0

[Event "Late-Titled-Tuesday-Blitz-April-02-2024"]
[Site "Chess.com"]
[Date "2024.04.02"]
[Round "1"]
[White "ATM622"]
[Black "shimastream"]
[Result "0-1"]
[WhiteElo "2522"]
[BlackElo "3006"]
[TimeControl "180+1"]
[EndTime "14:06:33 PDT"]
[Termination "shimastream won by resignation"]

1. d4 {[%clk 0:03:00.9]} 1... g6 {[%clk 0:02:57.1]} 2. c4 {[%clk 0:03:00.7]}
2... Bg7 {[%clk 0:02:57.2]} 3. Nf3 {[%clk 0:03:00.5]} 3... d6 {[%clk 0:02:57.1]}
4. g3 {[%clk 0:03:00.7]} 4... Nd7 {[%clk 0:02:56.1]} 5. Bg2 {[%clk 0:03:00.8]}
5... e5 {[%clk 0:02:56.7]} 6. O-O {[%clk 0:03:00.7]} 6... Ne7 {[%clk 0:02:56.7]}
7. Nc3 {[%clk 0:03:00.8]} 7... O-O {[%clk 0:02:56.6]} 8. dxe5 {[%clk 0:02:55.1]}
8... dxe5 {[%clk 0:02:57.1]} 9. e4 {[%clk 0:02:54.3]} 9... f5 {[%clk 0:02:46.2]}
10. Ng5 {[%clk 0:02:42.9]} 10... Nf6 {[%clk 0:02:44.3]} 11. exf5 {[%clk
0:02:36]} 11... gxf5 {[%clk 0:02:42.6]} 12. Nd5 {[%clk 0:02:29.2]} 12... c6
{[%clk 0:02:37.6]} 13. Nxf6+ {[%clk 0:02:18.3]} 13... Bxf6 {[%clk 0:02:38.5]}
14. Qh5 {[%clk 0:02:15.4]} 14... Bxg5 {[%clk 0:02:38.7]} 15. Bxg5 {[%clk
0:02:12.3]} 15... Qe8 {[%clk 0:02:37.2]} 16. Qxe8 {[%clk 0:02:10.7]} 16... Rxe8
{[%clk 0:02:36.9]} 17. Rfe1 {[%clk 0:02:10.6]} 17... Ng6 {[%clk 0:02:37]} 18.
Rad1 {[%clk 0:02:08.2]} 18... Be6 {[%clk 0:02:37]} 19. b3 {[%clk 0:02:05.4]}
19... a5 {[%clk 0:02:36.8]} 20. Bf6 {[%clk 0:01:59.5]} 20... e4 {[%clk
0:02:30.6]} 21. f3 {[%clk 0:01:50.2]} 21... Kf7 {[%clk 0:02:28.4]} 22. Bc3
{[%clk 0:01:49.3]} 22... exf3 {[%clk 0:02:28.4]} 23. Bxf3 {[%clk 0:01:48.2]}
23... a4 {[%clk 0:02:29.3]} 24. Rf1 {[%clk 0:01:37.2]} 24... axb3 {[%clk
0:02:26]} 25. axb3 {[%clk 0:01:37.1]} 25... Ra3 {[%clk 0:02:26.1]} 26. Rb1
{[%clk 0:01:34.9]} 26... Kg8 {[%clk 0:02:20.7]} 27. Bh5 {[%clk 0:01:31.3]} 27...
Rd8 {[%clk 0:02:18.2]} 28. Rfe1 {[%clk 0:01:31]} 28... Kf7 {[%clk 0:02:17.9]}
29. Bb4 {[%clk 0:01:28.8]} 29... Ra2 {[%clk 0:02:17.5]} 30. Rbd1 {[%clk
0:01:27.6]} 30... Rxd1 {[%clk 0:02:16.6]} 31. Rxd1 {[%clk 0:01:28.5]} 31... Rb2
{[%clk 0:02:16.2]} 32. Rd3 {[%clk 0:01:25.5]} 32... b5 {[%clk 0:01:58.5]} 33.
cxb5 {[%clk 0:01:08.7]} 33... cxb5 {[%clk 0:01:59.4]} 34. Bd1 {[%clk 0:01:08]}
34... Ne5 {[%clk 0:01:57.9]} 35. Re3 {[%clk 0:01:02.1]} 35... Ng4 {[%clk
0:01:57.3]} 36. Rc3 {[%clk 0:00:52.7]} 36... Rb1 {[%clk 0:01:49.7]} 37. Rd3
{[%clk 0:00:52.5]} 37... Bxb3 {[%clk 0:01:45.4]} 38. Rxb3 {[%clk 0:00:51.6]}
38... Rxd1+ {[%clk 0:01:46.1]} 39. Kg2 {[%clk 0:00:51.7]} 39... Rd5 {[%clk
0:01:46.1]} 40. h3 {[%clk 0:00:49.6]} 40... Nf6 {[%clk 0:01:46.1]} 41. Rc3
{[%clk 0:00:46.7]} 41... Ne4 {[%clk 0:01:42.7]} 42. Rc7+ {[%clk 0:00:46.2]}
42... Kg6 {[%clk 0:01:41.5]} 43. Rc6+ {[%clk 0:00:45]} 43... Kg5 {[%clk
0:01:40.2]} 44. Rc7 {[%clk 0:00:43.7]} 44... h5 {[%clk 0:01:37.4]} 45. Rc6
{[%clk 0:00:39.6]} 45... f4 {[%clk 0:01:37.1]} 46. Be7+ {[%clk 0:00:33]} 46...
Kf5 {[%clk 0:01:36.5]} 47. gxf4 {[%clk 0:00:28.8]} 47... Kxf4 {[%clk 0:01:37.4]}
48. Bf8 {[%clk 0:00:23.8]} 48... Rd2+ {[%clk 0:01:37]} 49. Kg1 {[%clk
0:00:23.7]} 49... Kf3 {[%clk 0:01:34.7]} 50. Rc7 {[%clk 0:00:15.1]} 50... Ng5
{[%clk 0:01:21]} 51. Rf7+ {[%clk 0:00:14.4]} 51... Nxf7 {[%clk 0:01:20.7]} 0-1